[Event "FRA-ch Youth U12 2019"]
[Site "Hyeres"]
[Date "2019.04.14"]
[Round "1.1"]
[White "Maurizzi, Marc Andria"]
[Black "Gachon, Alban"]
[Result "1-0"]
[ECO "C54"]
[WhiteElo "2276"]
[BlackElo "1543"]
[Annotator "NA"]
[PlyCount "107"]
[EventDate "2019.04.14"]
[EventType "swiss"]
[EventCountry "FRA"]
[SourceTitle "playchess.com"]
[Source "ChessBase"]
[SourceQuality "1"]
[TimeControl "5400+30"]

1. e4 {[%emt 0:00:00]} e5 {[%emt 0:00:00]} 2. Nf3 {[%emt 0:00:00]} Nc6 {[%emt 0:00:00]} 3. Bc4 {[%emt 0:00:00]} Bc5 {[%emt 0:00:33]} 4. O-O {[%emt 0:00:04]} Nf6 {[%emt 0:00:40]} 5. d3 {[%emt 0:00:14]} O-O {[%emt 0:00:59]} 6. c3 {[%emt 0:00:26]} d6 {[%emt 0:00:38]} 7. a4 {[%emt 0:01:06]} a5 {[%emt 0:00:33]} 8. Bg5 {[%emt 0:00:45]} Bg4 {[%emt 0:03:38]} 9. Nbd2 {[%emt 0:01:20]} h6 {[%emt 0:01:53]} 10. Bh4 {[%emt 0:00:11]} Bb6 {[%emt 0:06:01]} 11. h3 {[%emt 0:10:04]} Be6 {[%emt 0:02:26]} 12. Kh1 {[%emt 0:14:48]} Qe7 {[%emt 0:04:03]} 13. Bb3 {[%emt 0:11:37]} Rad8 {[%emt 0:03:04]} 14. Nc4 {[%emt 0:00:30]} Ba7 {[%emt 0:01:53]} 15. Ne3 {[%emt 0:01:27]} Bxe3 {[%emt 0:02:59]} 16. fxe3 {[%emt 0:00:43]} Nb8 {[%emt 0:01:17]} 17. d4 {[%emt 0:05:28]} Bxb3 {[%emt 0:01:51]} 18. Qxb3 {[%emt 0:00:04]} b6 {[%emt 0:00:16]} 19. Bxf6 {[%emt 0:01:02]} Qxf6 {[%emt 0:03:01]} 20. Nxe5 {[%emt 0:00:09]} Qe7 {[%emt 0:00:38]} 21. Ng6 {[%emt 0:00:23]} Qxe4 {[%emt 0:02:07]} 22. Nxf8 {[%emt 0:00:04]} Rxf8 {[%emt 0:00:09]} 23. Qc4 {[%emt 0:01:35]} c5 {[%emt 0:00:41]} 24. Rf3 {[%emt 0:01:45]} Nd7 {[%emt 0:00:43]} 25. Qb5 {[%emt 0:00:42]} Rd8 {[%emt 0:00:49]} 26. Raf1 {[%emt 0:00:17]} f6 {[%emt 0:00:19]} 27. dxc5 {[%emt 0:01:57]} Nxc5 {[%emt 0:00:46]} 28. Qxb6 {[%emt 0:00:10]} Nb7 {[%emt 0:00:24]} 29. Rf4 {[%emt 0:00:20]} Qd5 {[%emt 0:00:18]} 30. Rd4 {[%emt 0:01:03]} Qf7 {[%emt 0:00:23]} 31. b4 {[%emt 0:00:51]} axb4 {[%emt 0:00:27]} 32. cxb4 {[%emt 0:00:46]} Qd7 {[%emt 0:00:17]} 33. a5 {[%emt 0:00:15]} Ra8 {[%emt 0:01:13]} 34. a6 {[%emt 0:00:19]} Nd8 {[%emt 0:00:14]} 35. Rxd6 {[%emt 0:00:42]} Qe7 {[%emt 0:01:26]} 36. a7 {[%emt 0:01:08]} Nb7 {[%emt 0:00:45]} 37. Rc6 {[%emt 0:00:27]} Nd8 {[%emt 0:01:02]} 38. Rc7 {[%emt 0:00:08]} Qe4 {[%emt 0:00:45]} 39. Qb8 {[%emt 0:00:25]} Kh7 {[%emt 0:01:11]} 40. Rc8 {[%emt 0:00:10]} Qd3 {[%emt 0:01:38]} 41. Rg1 {[%emt 0:00:23]} Rxb8 {[%emt 0:00:49]} 42. axb8=Q {[%emt 0:00:14]} Ne6 {[%emt 0:00:24]} 43. Rh8+ {[%emt 0:00:12]} Kg6 {[%emt 0:00:05]} 44. Qe8+ {[%emt 0:00:05]} Kg5 {[%emt 0:00:09]} 45. Qxe6 {[%emt 0:00:07]} h5 {[%emt 0:00:29]} 46. h4+ {[%emt 0:00:18]} Kg6 {[%emt 0:00:24]} 47. Qe8+ {[%emt 0:00:13]} Kf5 {[%emt 0:00:15]} 48. g4+ {[%emt 0:00:25]} hxg4 {[%emt 0:00:27]} 49. Rh5+ {[%emt 0:00:04]} g5 {[%emt 0:00:06]} 50. Qc8+ {[%emt 0:01:02]} Kg6 {[%emt 0:01:02]} 51. Qxg4 {[%emt 0:00:19]} Qd5+ {[%emt 0:00:23]} 52. e4 {[%emt 0:00:07]} Qd3 {[%emt 0:00:32]} 53. Qf5+ {[%emt 0:00:16]} Kg7 {[%emt 0:00:21]} 54. Rgxg5+ {[%emt 0:49:50]} 1-0

[Event "FRA-ch Youth U12 2019"]
[Site "Hyeres"]
[Date "2019.04.14"]
[Round "1.2"]
[White "Dimey-Gabert, Quentin"]
[Black "Bat, Bilguun"]
[Result "0-1"]
[ECO "E49"]
[WhiteElo "1540"]
[BlackElo "2163"]
[Annotator "NA"]
[PlyCount "104"]
[EventDate "2019.04.14"]
[EventType "swiss"]
[EventCountry "FRA"]
[SourceTitle "playchess.com"]
[Source "ChessBase"]
[SourceQuality "1"]
[TimeControl "5400+30"]

1. d4 {[%emt 0:00:00]} Nf6 {[%emt 0:00:00]} 2. c4 {[%emt 0:00:00]} e6 {[%emt 0:00:00]} 3. Nc3 {[%emt 0:00:00]} Bb4 {[%emt 0:00:07]} 4. e3 {[%emt 0:00:00]} O-O {[%emt 0:00:13]} 5. a3 {[%emt 0:00:00]} Bxc3+ {[%emt 0:00:07]} 6. bxc3 {[%emt 0:00:00]} c5 {[%emt 0:01:00]} 7. Bd3 {[%emt 0:00:05]} Nc6 {[%emt 0:00:24]} 8. Ne2 {[%emt 0:00:10]} d5 {[%emt 0:01:10]} 9. O-O {[%emt 0:01:32]} a6 {[%emt 0:00:54]} 10. cxd5 {[%emt 0:03:38]} exd5 {[%emt 0:00:29]} 11. Ng3 {[%emt 0:01:55]} Re8 {[%emt 0:10:43]} 12. Re1 {[%emt 0:03:10]} cxd4 {[%emt 0:04:12]} 13. cxd4 {[%emt 0:00:10]} Be6 {[%emt 0:01:06]} 14. Bd2 {[%emt 0:04:02]} b5 {[%emt 0:06:39]} 15. Bb4 {[%emt 0:00:42]} Na5 {[%emt 0:02:52]} 16. Bxa5 {[%emt 0:04:37]} Qxa5 {[%emt 0:00:26]} 17. Qb3 {[%emt 0:00:51]} Rac8 {[%emt 0:01:48]} 18. Qb4 {[%emt 0:00:55]} Qc7 {[%emt 0:01:11]} 19. Ne2 {[%emt 0:01:14]} Bg4 {[%emt 0:04:26]} 20. Rac1 {[%emt 0:02:26]} Qd7 {[%emt 0:01:53]} 21. Nf4 {[%emt 0:00:24]} Bf5 {[%emt 0:06:55]} 22. Bxf5 {[%emt 0:01:39]} Qxf5 {[%emt 0:03:16]} 23. Rxc8 {[%emt 0:00:49]} Qxc8 {[%emt 0:02:20]} 24. Nd3 {[%emt 0:01:10]} Qf5 {[%emt 0:04:40]} 25. Nc5 {[%emt 0:01:47]} h6 {[%emt 0:04:05]} 26. Nxa6 {[%emt 0:00:56]} Ng4 {[%emt 0:01:37]} 27. Qd2 {[%emt 0:00:23]} Ra8 {[%emt 0:06:21]} 28. Nc7 {[%emt 0:00:45]} Rc8 {[%emt 0:00:43]} 29. Rc1 {[%emt 0:01:18]} Qd7 {[%emt 0:12:07]} 30. Nxb5 {[%emt 0:05:38]} Ra8 {[%emt 0:07:03]} 31. Qe2 {[%emt 0:01:15]} Nf6 {[%emt 0:01:12]} 32. Ra1 {[%emt 0:00:40]} Ra4 {[%emt 0:01:09]} 33. Nc3 {[%emt 0:00:56]} Rc4 {[%emt 0:00:11]} 34. Nd1 {[%emt 0:01:18]} Qc6 {[%emt 0:00:36]} 35. Qe1 {[%emt 0:00:51]} Ne4 {[%emt 0:04:23]} 36. f3 {[%emt 0:00:37]} Ng5 {[%emt 0:01:45]} 37. Nb2 {[%emt 0:00:23]} Rc2 {[%emt 0:00:11]} 38. Nd3 {[%emt 0:00:03]} Qg6 {[%emt 0:00:39]} 39. Qf1 {[%emt 0:01:19]} Nh3+ {[%emt 0:01:56]} 40. Kh1 {[%emt 0:02:14]} Qxd3 {[%emt 0:00:15]} 41. gxh3 {[%emt 0:00:12]} Qd2 {[%emt 0:04:00]} 42. Qg1 {[%emt 0:01:02]} Qe2 {[%emt 0:00:32]} 43. Rf1 {[%emt 0:00:28]} Ra2 {[%emt 0:00:21]} 44. a4 {[%emt 0:02:47]} Rxa4 {[%emt 0:01:05]} 45. Qf2 {[%emt 0:02:15]} Qd3 {[%emt 0:00:46]} 46. Re1 {[%emt 0:01:25]} Rc4 {[%emt 0:00:45]} 47. Qe2 {[%emt 0:00:31]} Qb3 {[%emt 0:01:07]} 48. Rd1 {[%emt 0:00:50]} Rc2 {[%emt 0:00:23]} 49. Rd2 {[%emt 0:00:29]} Qb1+ {[%emt 0:00:26]} 50. Kg2 {[%emt 0:00:08]} Rc1 {[%emt 0:00:12]} 51. Qf2 {[%emt 0:00:10]} Rc6 {[%emt 0:00:46]} 52. h4 {[%emt 0:00:17]} Rg6+ {[%emt 0:00:05]} 0-1

[Event "FRA-ch Youth U12 2019"]
[Site "Hyeres"]
[Date "2019.04.14"]
[Round "1.3"]
[White "Makkar, Rajat"]
[Black "Pitaval, Lubin"]
[Result "1-0"]
[ECO "A83"]
[WhiteElo "2147"]
[BlackElo "1540"]
[Annotator "NA"]
[PlyCount "51"]
[EventDate "2019.04.14"]
[EventType "swiss"]
[EventCountry "FRA"]
[SourceTitle "playchess.com"]
[Source "ChessBase"]
[SourceQuality "1"]
[TimeControl "5400+30"]

1. d4 {[%emt 0:00:00]} f5 {[%emt 0:00:00]} 2. Nc3 {[%emt 0:00:00]} Nf6 {[%emt 0:00:14]} 3. Bg5 {[%emt 0:00:24]} e6 {[%emt 0:00:36]} 4. e4 {[%emt 0:00:23]} fxe4 {[%emt 0:01:58]} 5. Nxe4 {[%emt 0:00:23]} Be7 {[%emt 0:00:42]} 6. Bxf6 {[%emt 0:00:21]} Bxf6 {[%emt 0:00:46]} 7. Nf3 {[%emt 0:00:43]} O-O {[%emt 0:04:46]} 8. Bd3 {[%emt 0:01:15]} Nc6 {[%emt 0:02:58]} 9. c3 {[%emt 0:01:04]} b6 {[%emt 0:01:43]} 10. Qc2 {[%emt 0:01:11]} g6 {[%emt 0:03:01]} 11. h4 {[%emt 0:01:16]} d5 {[%emt 0:01:27]} 12. Neg5 {[%emt 0:03:04]} e5 {[%emt 0:08:37]} 13. Bxg6 {[%emt 0:00:49]} e4 {[%emt 0:04:08]} 14. Bxh7+ {[%emt 0:01:28]} Kg7 {[%emt 0:00:52]} 15. O-O-O {[%emt 0:03:00]} Ne7 {[%emt 0:03:58]} 16. Ne5 {[%emt 0:05:40]} Bxg5+ {[%emt 0:03:57]} 17. hxg5 {[%emt 0:02:03]} Rh8 {[%emt 0:02:28]} 18. g6 {[%emt 0:00:20]} Be6 {[%emt 0:03:50]} 19. Qd2 {[%emt 0:02:13]} Ng8 {[%emt 0:06:02]} 20. Bxg8 {[%emt 1:14:23]} Qxg8 {[%emt 0:00:17]} 21. Qg5 {[%emt 0:00:00]} Re8 {[%emt 0:01:01]} 22. Rh7+ {[%emt 0:00:00]} Rxh7 {[%emt 0:03:43]} 23. gxh7+ {[%emt 0:00:00]} Kf8 {[%emt 0:01:03]} 24. hxg8=Q+ {[%emt 0:00:00]} Bxg8 {[%emt 0:00:11]} 25. Qf6+ {[%emt 0:00:00]} Bf7 {[%emt 0:00:10]} 26. Qxf7# {[%emt 0:00:00]} 1-0

[Event "FRA-ch Youth U12 2019"]
[Site "Hyeres"]
[Date "2019.04.14"]
[Round "1.4"]
[White "Menoux, Joachim"]
[Black "Mekhane, Adam"]
[Result "0-1"]
[ECO "D77"]
[WhiteElo "1537"]
[BlackElo "1995"]
[Annotator "NA"]
[PlyCount "64"]
[EventDate "2019.04.14"]
[EventType "swiss"]
[EventCountry "FRA"]
[SourceTitle "playchess.com"]
[Source "ChessBase"]
[SourceQuality "1"]
[TimeControl "5400+30"]

1. Nf3 {[%emt 0:00:00]} Nf6 {[%emt 0:00:00]} 2. g3 {[%emt 0:00:24]} g6 {[%emt 0:00:14]} 3. Bg2 {[%emt 0:00:30]} Bg7 {[%emt 0:00:06]} 4. O-O {[%emt 0:00:30]} O-O {[%emt 0:00:09]} 5. d4 {[%emt 0:00:26]} d5 {[%emt 0:04:19]} 6. c4 {[%emt 0:01:01]} dxc4 {[%emt 0:01:51]} 7. Bf4 {[%emt 0:00:50]} c5 {[%emt 0:08:42]} 8. Qc2 {[%emt 0:03:03]} cxd4 {[%emt 0:02:46]} 9. Qxc4 {[%emt 0:00:30]} Nc6 {[%emt 0:01:00]} 10. Rd1 {[%emt 0:00:21]} Qb6 {[%emt 0:05:08]} 11. Nbd2 {[%emt 0:09:45]} Be6 {[%emt 0:09:00]} 12. Qc2 {[%emt 0:03:24]} Nd5 {[%emt 0:04:20]} 13. Nc4 {[%emt 0:06:14]} Qc5 {[%emt 0:05:01]} 14. Rac1 {[%emt 0:02:10]} Nxf4 {[%emt 0:05:14]} 15. gxf4 {[%emt 0:00:03]} Nb4 {[%emt 0:01:07]} 16. Qd2 {[%emt 0:01:18]} Nxa2 {[%emt 0:01:21]} 17. Rc2 {[%emt 0:08:40]} Bxc4 {[%emt 0:01:48]} 18. b3 {[%emt 0:00:34]} Nc3 {[%emt 0:01:34]} 19. bxc4 {[%emt 0:01:21]} Nxd1 {[%emt 0:02:20]} 20. Qxd1 {[%emt 0:00:06]} a5 {[%emt 0:01:34]} 21. Ne5 {[%emt 0:00:45]} Bxe5 {[%emt 0:00:58]} 22. fxe5 {[%emt 0:00:09]} Ra7 {[%emt 0:00:08]} 23. Rb2 {[%emt 0:02:44]} a4 {[%emt 0:00:39]} 24. Rxb7 {[%emt 0:00:25]} Rxb7 {[%emt 0:00:08]} 25. Bxb7 {[%emt 0:00:07]} Qxc4 {[%emt 0:00:46]} 26. Be4 {[%emt 0:02:05]} a3 {[%emt 0:02:08]} 27. Qa1 {[%emt 0:00:50]} Qc3 {[%emt 0:01:01]} 28. Qb1 {[%emt 0:04:35]} Qb2 {[%emt 0:00:36]} 29. Kf1 {[%emt 0:00:18]} Qxb1+ {[%emt 0:00:07]} 30. Bxb1 {[%emt 0:00:02]} Rc8 {[%emt 0:00:04]} 31. Ba2 {[%emt 0:00:35]} Rc1+ {[%emt 0:00:04]} 32. Kg2 {[%emt 0:00:06]} Rc2 {[%emt 0:00:03]} 0-1

[Event "FRA-ch Youth U12 2019"]
[Site "Hyeres"]
[Date "2019.04.15"]
[Round "2.4"]
[White "Mekhane, Adam"]
[Black "Volkov, Andreiy"]
[Result "1-0"]
[ECO "B38"]
[WhiteElo "1995"]
[BlackElo "1628"]
[Annotator "NA RC"]
[PlyCount "59"]
[EventDate "2019.04.14"]
[EventType "swiss"]
[EventCountry "FRA"]
[SourceTitle "playchess.com"]
[Source "ChessBase"]
[SourceQuality "1"]
[TimeControl "5400+30"]

{[%evp 8,59,16,41,35,49,32767,51,32767,32767,7,32767,56,63,45,32767,67,70,76,84,115,102,95,65,93,77,137,69,104,98,238,195,205,221,198,213,189,201,591,672,631,682,699,680,608,764,884,940,932,1064,1220,1561,1083,2495]} 1. e4 {[%emt 0:00:00]} c5 {[%emt 0:00:00]} 2. Nf3 {[%emt 0:00:00]} Nc6 {[%emt 0:00:00]} 3. d4 {[%emt 0:00:00]} cxd4 {[%emt 0:00:00]} 4. Nxd4 {[%emt 0:00:00]} g6 {[%emt 0:00:00]} 5. c4 {[%emt 0:00:01]} Bg7 {[%emt 0:00:00]} 6. Be3 {[%emt 0:00:43]} Nf6 {[%emt 0:01:00]} 7. Nc3 {[%emt 0:00:06]} O-O {[%emt 0:00:07]} 8. Nc2 {[%emt 0:02:30]} d6 {[%emt 0:03:04]} 9. Be2 {[%emt 0:01:27]} Bd7 {[%emt 0:04:37]} 10. O-O {[%emt 0:00:53]} Rc8 {[%emt 0:04:43]} 11. f3 {[%emt 1:29:50]} b6 {[%emt 0:10:43] B38: Sicilian: Maroczy Bind with 5...Bg7 and 7...0-0} (11... a6 12. Qd2 Ne5 13. Na3 Re8 14. Rab1 Qc7 15. Rfc1 Qa5 16. Rc2 {½-½ (16) Bacrot,E (2695)-Gharamian,T (2672) Belfort 2012}) 12. Qd2 {[%emt 0:00:00]} Ne5 {[%emt 0:02:47]} 13. b3 {[%emt 0:00:00]} Ne8 {[%emt 0:09:08]} 14. Rac1 {[%emt 0:00:00]} Nc7 $146 {[%emt 0:02:17]} ({Predecessor:} 14... f5 15. exf5 gxf5 16. Rfe1 Kh8 17. Nd4 Ng6 18. Bf1 f4 19. Bf2 Nc7 {1-0 (41) Baum,B (2314)-Schneider,A (2088) Marianske Lazne 2018}) 15. Nb4 {[%emt 0:00:00]} Nc6 {[%emt 0:05:41]} 16. Nbd5 {[%emt 0:00:00]} Nxd5 {[%emt 0:03:04]} 17. Nxd5 {[%emt 0:00:00]} Ne5 {[%emt 0:01:46]} 18. f4 {[%emt 0:00:00]} Ng4 {[%emt 0:03:34] [#]} (18... Nc6 $16 {keeps fighting.}) 19. Bxg4 $1 {[%emt 0:00:00]} Bxg4 {[%emt 0:00:06] [#]} 20. f5 $1 {[%emt 0:00:00]} e6 {[%emt 0:00:17]} 21. f6 {[%emt 0:00:00]} exd5 {[%emt 0:01:46]} 22. fxg7 {[%emt 0:00:00]} Kxg7 $2 {[%emt 0:00:18]} (22... Re8 {is more resistant.}) 23. Bh6+ {[%emt 0:00:00]} Kg8 {[%emt 0:01:46]} 24. Qd4 {[%emt 0:00:00]} f6 {[%emt 0:00:53]} 25. Bxf8 {[%emt 0:00:00]} Qxf8 {[%emt 0:00:06]} 26. Rxf6 {[%emt 0:00:00]} Qg7 {[%emt 0:00:06]} 27. Qxd5+ {[%emt 0:00:00]} Kh8 {[%emt 0:00:12]} 28. Rcf1 {[%emt 0:00:00]} Rd8 {[%emt 0:02:44]} 29. Rxd6 {[%emt 0:00:00]} Rxd6 {[%emt 0:00:09]} 30. Qxd6 $18 {[%emt 0:00:00]} 1-0

[Event "FRA-ch Youth U12 2019"]
[Site "Hyeres"]
[Date "2019.04.15"]
[Round "3.2"]
[White "Deblock, Kien"]
[Black "Bat, Bilguun"]
[Result "0-1"]
[ECO "B22"]
[WhiteElo "1642"]
[BlackElo "2163"]
[Annotator "NA"]
[PlyCount "60"]
[EventDate "2019.04.14"]
[EventType "swiss"]
[EventCountry "FRA"]
[SourceTitle "playchess.com"]
[Source "ChessBase"]
[SourceQuality "1"]
[TimeControl "5400+30"]

1. e4 {[%emt 0:00:00]} c5 {[%emt 0:00:00]} 2. c3 {[%emt 0:00:00]} d5 {[%emt 0:00:03]} 3. exd5 {[%emt 0:00:00]} Nf6 {[%emt 0:00:17]} 4. d4 {[%emt 0:00:19]} Qxd5 {[%emt 0:00:14]} 5. Nf3 {[%emt 0:00:06]} Bg4 {[%emt 0:00:18]} 6. Be2 {[%emt 0:00:46]} Nc6 {[%emt 0:01:13]} 7. Be3 {[%emt 0:01:16]} e6 {[%emt 1:31:25]} 8. dxc5 {[%emt 0:00:39]} Qxd1+ {[%emt 0:00:00]} 9. Bxd1 {[%emt 0:00:06]} Nd5 {[%emt 0:00:00]} 10. Bd4 {[%emt 0:00:59]} Nf4 {[%emt 0:00:00]} 11. O-O {[%emt 0:00:54]} Rd8 {[%emt 0:00:00]} 12. Nbd2 {[%emt 0:03:04]} Be7 {[%emt 0:00:00]} 13. b4 {[%emt 0:06:55]} O-O {[%emt 0:00:00]} 14. Nb3 $14 {[%emt 0:15:32]} Nd5 {[%emt 0:00:00]} 15. b5 {[%emt 0:02:18]} Nxd4 {[%emt 0:00:00]} 16. cxd4 {[%emt 0:00:10]} Bf5 {[%emt 0:00:00]} 17. Be2 {[%emt 0:07:44]} g5 {[%emt 0:00:00]} 18. Rfc1 {[%emt 0:05:20]} g4 {[%emt 0:00:00]} 19. Ne5 {[%emt 0:00:49]} Nf4 {[%emt 0:00:00]} 20. Bd1 {[%emt 0:01:53]} h5 {[%emt 0:00:00]} 21. a4 {[%emt 0:09:19]} f6 {[%emt 0:00:00]} 22. Nc4 {[%emt 0:00:39]} Be4 {[%emt 0:00:00]} 23. g3 {[%emt 0:03:34]} Nh3+ {[%emt 0:00:00]} 24. Kf1 {[%emt 0:00:06]} f5 {[%emt 0:00:00]} 25. Bc2 {[%emt 0:03:40]} Bd5 {[%emt 0:00:00]} 26. Bd3 {[%emt 0:01:38]} f4 {[%emt 0:00:00]} 27. Rc2 {[%emt 0:00:45]} fxg3 {[%emt 0:00:00]} 28. hxg3 {[%emt 0:00:38]} Rf3 {[%emt 0:00:00]} 29. Rd1 {[%emt 0:01:33]} Rdf8 {[%emt 0:00:00]} 30. Rdd2 {[%emt 0:01:02]} Rxg3 {[%emt 0:00:00]} 0-1

[Event "FRA-ch Youth U12 2019"]
[Site "Hyeres"]
[Date "2019.04.15"]
[Round "3.3"]
[White "Makkar, Rajat"]
[Black "Lesueur, Gabriel"]
[Result "0-1"]
[ECO "E69"]
[WhiteElo "2147"]
[BlackElo "1589"]
[Annotator "NA"]
[PlyCount "78"]
[EventDate "2019.04.14"]
[EventType "swiss"]
[EventCountry "FRA"]
[SourceTitle "playchess.com"]
[Source "ChessBase"]
[SourceQuality "1"]
[TimeControl "5400+30"]

1. d4 {[%emt 0:00:00]} Nf6 {[%emt 0:00:00]} 2. c4 {[%emt 0:00:11]} g6 {[%emt 0:00:03]} 3. g3 {[%emt 0:00:10]} Bg7 {[%emt 0:00:06]} 4. Bg2 {[%emt 0:00:05]} O-O {[%emt 0:00:21]} 5. Nf3 {[%emt 0:00:17]} d6 {[%emt 0:00:33]} 6. Nc3 {[%emt 0:00:18]} Nbd7 {[%emt 0:00:30]} 7. O-O {[%emt 0:00:12]} e5 {[%emt 0:00:13]} 8. e4 {[%emt 0:00:31]} c6 {[%emt 0:01:20]} 9. h3 {[%emt 0:00:53]} Qe7 {[%emt 0:03:24]} 10. Re1 {[%emt 0:02:41]} Re8 {[%emt 0:04:46]} 11. b3 {[%emt 0:07:55]} a5 {[%emt 0:06:13]} 12. Ba3 {[%emt 0:04:13]} exd4 {[%emt 0:08:57]} 13. Nxd4 {[%emt 0:02:06]} Nc5 {[%emt 0:00:56]} 14. f4 {[%emt 0:07:15]} Nh5 {[%emt 0:20:36]} 15. Kh2 {[%emt 0:03:47]} f5 {[%emt 0:00:23] [#]} 16. e5 $16 {[%emt 0:00:32]} Nxg3 {[%emt 0:19:59]} 17. Bxc5 {[%emt 0:03:37]} dxc5 {[%emt 0:00:13]} 18. Nxc6 {[%emt 0:00:15]} Qh4 {[%emt 0:09:03]} 19. Bd5+ {[%emt 0:06:23]} Be6 {[%emt 0:05:35]} 20. Qf3 {[%emt 0:06:26]} Nh5 {[%emt 0:00:53]} 21. Rf1 {[%emt 0:00:56]} g5 {[%emt 0:03:22]} 22. Ne2 {[%emt 0:03:36]} bxc6 {[%emt 0:06:27]} 23. Bxc6 {[%emt 0:49:11]} Nxf4 {[%emt 0:00:08]} 24. Nxf4 {[%emt 0:00:00]} Bxe5 {[%emt 0:00:07]} 25. Bxa8 {[%emt 0:00:00]} Qxf4+ {[%emt 0:07:05]} 26. Qxf4 {[%emt 0:00:00]} Bxf4+ {[%emt 0:00:01]} 27. Rxf4 {[%emt 0:00:00]} gxf4 {[%emt 0:00:01]} 28. Bf3 {[%emt 0:00:00]} Bf7 {[%emt 0:01:59]} 29. Rd1 {[%emt 0:00:00]} a4 {[%emt 0:00:14]} 30. bxa4 {[%emt 0:00:00]} Bxc4 {[%emt 0:00:02]} 31. Rc1 {[%emt 0:00:00]} Re3 {[%emt 0:01:26]} 32. Kg2 {[%emt 0:00:00]} Bxa2 {[%emt 0:00:11]} 33. Rxc5 {[%emt 0:05:00]} Ra3 {[%emt 0:00:13]} 34. a5 {[%emt 0:00:00]} Bb1 {[%emt 0:00:17]} 35. Bd5+ {[%emt 0:00:00]} Kg7 {[%emt 0:00:21]} 36. Bc4 {[%emt 0:00:00]} Be4+ {[%emt 0:00:14]} 37. Kh2 {[%emt 0:02:00]} Ra1 {[%emt 0:00:11]} 38. Rc7+ {[%emt 0:00:00]} Kh6 {[%emt 0:00:14]} 39. Bf1 {[%emt 0:00:00]} Rxf1 {[%emt 0:02:53]} 0-1

[Event "FRA-ch Youth U12 2019"]
[Site "Hyeres"]
[Date "2019.04.15"]
[Round "3.4"]
[White "Garrigue, Julian"]
[Black "Mekhane, Adam"]
[Result "0-1"]
[ECO "B22"]
[WhiteElo "1562"]
[BlackElo "1995"]
[Annotator "NA"]
[PlyCount "102"]
[EventDate "2019.04.14"]
[EventType "swiss"]
[EventCountry "FRA"]
[SourceTitle "playchess.com"]
[Source "ChessBase"]
[SourceQuality "1"]
[TimeControl "5400+30"]

1. e4 {[%emt 0:00:00]} c5 {[%emt 0:00:00]} 2. d4 {[%emt 0:00:00]} cxd4 {[%emt 0:00:00]} 3. c3 {[%emt 0:00:00]} Nf6 {[%emt 0:00:00]} 4. e5 {[%emt 0:00:00]} Nd5 {[%emt 0:00:01]} 5. cxd4 {[%emt 0:00:00]} d6 {[%emt 0:00:07]} 6. Nf3 {[%emt 0:01:14]} Nc6 {[%emt 0:00:04]} 7. Bc4 {[%emt 0:02:37]} Nb6 {[%emt 0:00:05]} 8. Bd3 {[%emt 0:00:45] B22: Sicilian: 2 c3} (8. Bb5 Bd7 9. exd6 e6 10. Bg5 f6 11. Be3 Bxd6 12. Nc3 Nb4 13. Be2 N4d5 14. O-O O-O 15. Bd3 Rc8 16. Rc1 Be8 17. Nxd5 Nxd5 18. Rxc8 Qxc8 {0-1 (26) Potkin,V (2597)-Nepomniachtchi,I (2763) Moscow 2018}) 8... g6 {[%emt 0:08:04]} 9. O-O {[%emt 0:02:09]} Bg7 {[%emt 0:00:51]} 10. Re1 {[%emt 0:02:25]} O-O {[%emt 0:00:33]} 11. Bf4 $146 {[%emt 0:02:55]} ({Predecessor:} 11. a3 dxe5 12. dxe5 Bg4 13. Bf4 Nd5 14. Bg3 e6 15. Nbd2 Nf4 {½-½ (38) Qin,J (1685)-Taylor,R (1888) Auckland 2016}) 11... Bg4 {[%emt 0:03:18]} 12. Be2 {[%emt 0:07:08]} (12. exd6 $1 $15 exd6 13. Be2) 12... dxe5 {[%emt 0:10:27]} 13. dxe5 {[%emt 0:01:56]} Bxf3 {[%emt 0:00:45]} 14. Bxf3 {[%emt 0:00:13]} Qxd1 {[%emt 0:00:11]} 15. Bxd1 {[%emt 0:00:35]} ({White should try} 15. Rxd1 Nxe5 16. Bxb7) 15... Nc4 {[%emt 0:00:36]} 16. Bc2 {[%emt 0:02:12]} N4xe5 {[%emt 0:03:02]} ({Don't play} 16... Bxe5 17. Bxe5 N4xe5 18. Nc3 $17) 17. Nc3 {[%emt 0:01:43]} Nc4 {[%emt 0:03:36]} 18. Bc1 {[%emt 0:12:49]} Rfd8 {[%emt 0:05:40]} 19. Rd1 $19 {[%emt 0:04:15]} Nb4 {[%emt 0:07:19]} 20. Bb3 {[%emt 0:05:01]} Rxd1+ {[%emt 0:01:41]} 21. Bxd1 {[%emt 0:01:31]} Nd3 {[%emt 0:01:31]} 22. Na4 {[%emt 0:08:34]} b5 {[%emt 0:04:51]} 23. Be2 {[%emt 0:00:36]} Rd8 {[%emt 0:02:18]} 24. Nc3 {[%emt 0:01:26]} b4 {[%emt 0:06:54]} 25. Na4 {[%emt 0:00:22]} Rd7 {[%emt 0:02:16]} 26. Rb1 {[%emt 0:02:25]} h5 {[%emt 0:07:39]} 27. b3 {[%emt 0:01:38]} Nxc1 {[%emt 0:01:40]} 28. Rxc1 {[%emt 0:00:39]} Ne5 {[%emt 0:00:27]} 29. f4 {[%emt 0:01:03]} Ng4 {[%emt 0:07:55]} 30. h3 {[%emt 0:06:04]} Ne3 {[%emt 0:05:29]} 31. Kf2 {[%emt 0:02:32]} Nd5 {[%emt 0:02:24]} 32. Rd1 {[%emt 0:01:15]} e6 {[%emt 0:02:40]} 33. g4 {[%emt 0:02:41]} hxg4 {[%emt 0:02:36]} 34. hxg4 {[%emt 0:00:48]} Rc7 {[%emt 0:00:30]} 35. Kf3 {[%emt 0:02:09]} Rc2 {[%emt 0:00:56]} 36. Bc4 {[%emt 0:00:26]} Nc3 {[%emt 0:02:00]} 37. Rd8+ {[%emt 0:00:47]} Kh7 {[%emt 0:00:18]} 38. Bd3 {[%emt 0:00:46]} Rxa2 {[%emt 0:10:16]} 39. Rb8 {[%emt 0:01:21]} Nxa4 {[%emt 0:00:00]} 40. bxa4 {[%emt 0:00:05]} Rxa4 {[%emt 0:00:00]} 41. Bc2 {[%emt 0:00:30]} Ra3+ {[%emt 0:00:00]} 42. Ke4 {[%emt 0:00:16]} Bc3 {[%emt 0:00:00]} 43. f5 {[%emt 0:01:01]} gxf5+ {[%emt 0:00:00]} 44. gxf5 {[%emt 0:00:06]} exf5+ {[%emt 0:00:00]} 45. Kxf5 {[%emt 0:00:19]} Kg7 {[%emt 0:00:00]} 46. Rb5 {[%emt 0:00:21]} a5 {[%emt 0:00:00]} 47. Kg5 {[%emt 0:00:43]} a4 {[%emt 0:00:00]} 48. Rc5 {[%emt 0:01:33]} Bf6+ {[%emt 0:00:00]} 49. Kf4 {[%emt 0:01:00]} b3 {[%emt 0:00:00]} 50. Bb1 {[%emt 0:00:19]} Ra1 {[%emt 0:00:00]} 51. Rc1 {[%emt 0:00:15]} a3 {[%emt 0:00:00]} 0-1